bitfinex/quotes_BTCUSD_20241130
["timestamp","ask_amount","ask_price","bid_price","bid_amount"]
[1732948102564,0.81120767,96991.0,96990.0,0.01979079]
[1732948108332,0.8112129,96991.0,96990.0,0.01979079]
[1732948111963,0.8112145,96991.0,96990.0,0.01979079]
[1732948119249,0.66773095,96990.0,96971.0,0.103123]
[1732948119480,0.103105,96988.0,96962.0,0.01080618]
[1732948119725,0.103116,96978.0,96971.0,0.103122]
[1732948119936,0.46152495,96990.0,96970.0,0.103124]
[1732948119937,0.20596221,96977.0,96970.0,0.103124]
[1732948120148,0.20563899,96977.0,96967.0,0.206255]
[1732948120360,0.10252199,96977.0,96968.0,0.206253]
[1732948120576,0.02079505,96972.0,96965.0,0.206259]
[1732948120785,0.02079505,96972.0,96969.0,0.103124]
[1732948121016,0.02079505,96972.0,96969.0,0.103125]
[1732948121252,0.10252199,96977.0,96971.0,0.111123]
[1732948121489,0.10252199,96977.0,96973.0,0.10312]
[1732948121722,0.10452199,96977.0,96971.0,0.103123]
[1732948121951,0.10252199,96977.0,96960.0,0.21891443]
[1732948122189,0.004,96972.0,96971.0,0.103123]
[1732948122412,0.006,96972.0,96971.0,0.103123]
[1732948122646,0.002,96972.0,96971.0,0.103123]
[1732948124280,0.02111585,96974.0,96972.0,0.103122]
[1732948125449,0.02111585,96974.0,96973.0,0.103121]
[1732948125663,0.02611585,96974.0,96973.0,0.103121]
[1732948125878,0.03011585,96974.0,96973.0,0.103121]
[1732948126314,0.03011585,96974.0,96972.0,0.001]
[1732948126766,0.03011585,96974.0,96972.0,0.104121]
[1732948127178,0.02611585,96974.0,96973.0,0.103121]
[1732948127414,0.02611585,96974.0,96972.0,0.103121]
[1732948127867,0.03111585,96974.0,96973.0,0.001]
[1732948128105,0.02611585,96974.0,96973.0,0.001]
[1732948128260,0.03011585,96974.0,96973.0,0.001]
[1732948128511,0.02511585,96974.0,96966.0,0.206257]
[1732948128685,0.02111585,96974.0,96972.0,0.103121]
[1732948128891,0.02611585,96974.0,96972.0,0.104121]
[1732948129116,0.02611585,96974.0,96972.0,0.103121]
[1732948129513,0.03111585,96974.0,96973.0,0.001]
[1732948129941,0.03078635,96974.0,96973.0,0.001]
[1732948130303,0.02578635,96974.0,96973.0,0.001]
[1732948130503,0.02978635,96974.0,96973.0,0.001]
[1732948130725,0.02478635,96974.0,96972.0,0.103121]
[1732948130974,0.02978635,96974.0,96972.0,0.104121]
[1732948131185,0.02578635,96974.0,96972.0,0.104121]
[1732948131360,0.02078635,96974.0,96972.0,0.103121]
[1732948131727,0.02578635,96974.0,96973.0,0.001]
[1732948131862,0.03078635,96974.0,96972.0,0.103121]
[1732948132058,0.03078635,96974.0,96972.0,0.1048524]
[1732948132287,0.03578635,96974.0,96972.0,0.1058524]
[1732948133268,0.03078635,96974.0,96973.0,0.103121]
[1732948133718,0.03478635,96974.0,96973.0,0.103121]
[1732948134239,0.03078635,96974.0,96973.0,0.103121]
[1732948134464,0.02578635,96974.0,96973.0,0.103121]
[1732948134697,0.02578635,96974.0,96973.0,0.51291799]
[1732948134897,0.03078635,96974.0,96973.0,0.51391799]
[1732948135536,0.03078635,96974.0,96973.0,0.104121]
[1732948136390,0.03078635,96974.0,96973.0,0.127121]
[1732948136845,0.03078635,96974.0,96973.0,0.104121]
[1732948137053,0.03078635,96974.0,96973.0,0.001]
[1732948137229,0.03078635,96974.0,96973.0,0.104121]
[1732948137881,0.03078635,96974.0,96973.0,0.001]
[1732948138070,0.03078635,96974.0,96973.0,0.104121]
[1732948138546,0.03078635,96974.0,96973.0,0.51420647]
[1732948138721,0.03078635,96974.0,96973.0,0.104121]
[1732948138937,0.03078635,96974.0,96973.0,0.51420207]
[1732948139186,0.03078635,96974.0,96973.0,0.104121]
[1732948139417,0.11284521,96974.0,96973.0,0.001]
[1732948139881,0.19464521,96974.0,96973.0,0.001]
[1732948140857,0.19660815,96974.0,96973.0,0.001]
[1732948141072,0.29972815,96974.0,96973.0,0.41129482]
[1732948141299,0.19464521,96974.0,96973.0,0.41129482]
[1732948141762,0.19464521,96974.0,96973.0,0.001]
[1732948142004,0.29972815,96974.0,96973.0,0.41124599]
[1732948142233,0.29776521,96974.0,96973.0,0.001]
[1732948142441,0.19464521,96974.0,96973.0,0.001]
[1732948142660,0.29972815,96974.0,96973.0,0.001]
[1732948142869,0.19464521,96974.0,96973.0,0.001]
[1732948143114,0.19660815,96974.0,96973.0,0.001]
[1732948143286,0.29972815,96974.0,96973.0,0.001]
[1732948143423,0.29776521,96974.0,96973.0,0.001]
[1732948143857,0.19464521,96974.0,96973.0,0.001]
[1732948144052,0.29972815,96974.0,96973.0,0.001]
[1732948144295,0.19464521,96974.0,96973.0,0.001]
[1732948144494,0.19660815,96974.0,96973.0,0.001]
[1732948145518,0.29972815,96974.0,96973.0,0.4112337]
[1732948145721,0.29776521,96974.0,96973.0,0.4112337]
[1732948146153,0.29776521,96974.0,96973.0,0.001]
[1732948146618,0.19464521,96974.0,96973.0,0.001]
[1732948146888,0.29972815,96974.0,96973.0,0.001]
[1732948147073,0.29776521,96974.0,96973.0,0.001]
[1732948147745,0.19464521,96974.0,96973.0,0.001]
[1732948148209,0.19660815,96974.0,96973.0,0.001]
[1732948149045,0.19660815,96974.0,96973.0,0.41126403]
[1732948149829,0.29972815,96974.0,96973.0,0.41126403]
[1732948150028,0.29776521,96974.0,96973.0,0.41126403]
[1732948150658,0.34366521,96974.0,96973.0,0.41126403]
[1732948150880,0.34366521,96974.0,96973.0,0.001]
[1732948157859,0.34366521,96974.0,96973.0,0.0027316]
[1732948158226,0.34453101,96974.0,96973.0,0.0027316]
[1732948159089,0.34453101,96974.0,96973.0,0.01816563]
[1732948162740,0.34453101,96974.0,96973.0,0.0181631]
[1732948163346,0.34453101,96974.0,96973.0,0.01816236]
[1732948163767,0.34453101,96974.0,96973.0,0.0027316]
[1732948163992,0.34453101,96974.0,96973.0,0.01816255]
[1732948165912,0.34453101,96974.0,96973.0,0.0027316]
[1732948166130,0.34453101,96974.0,96973.0,0.01816465]
[1732948168776,0.81572074,96974.0,96973.0,0.01816465]
[1732948169003,0.81572097,96974.0,96973.0,0.01816465]
[1732948169673,0.81072089,96974.0,96973.0,0.01716465]
[1732948169871,0.81039141,96974.0,96973.0,0.01716465]
[1732948170105,0.80572089,96974.0,96973.0,0.01716465]
[1732948170533,0.80972089,96974.0,96973.0,0.01716465]
[1732948170971,0.81072089,96974.0,96973.0,0.01716465]
[1732948171195,0.81772089,96974.0,96973.0,0.01716465]
[1732948171627,0.82672089,96974.0,96973.0,0.01716465]
[1732948172964,0.82671918,96974.0,96973.0,0.0017316]
[1732948173177,0.82671911,96974.0,96973.0,0.0017316]
[1732948174271,0.87438626,96974.0,96973.0,0.0017316]
[1732948174533,0.82671911,96974.0,96973.0,0.0017316]
[1732948179906,0.81705596,96974.0,96973.0,0.0017316]
[1732948180129,0.82671472,96974.0,96973.0,0.0017316]
[1732948183730,0.82671456,96974.0,96973.0,0.0017316]
[1732948186148,0.81705596,96974.0,96973.0,0.0017316]
[1732948186401,0.82671454,96974.0,96973.0,0.0017316]
[1732948187093,0.84666456,96974.0,96973.0,0.0017316]
[1732948187314,0.87886102,96974.0,96973.0,0.0017316]
[1732948188374,0.85786102,96974.0,96973.0,0.0017316]
[1732948188585,0.85886102,96974.0,96973.0,0.0037316]
[1732948188795,0.85986102,96974.0,96973.0,0.0037316]
[1732948188970,0.85860028,96974.0,96973.0,0.0037316]
[1732948192004,0.85660028,96974.0,96973.0,0.0017316]
[1732948192217,0.85860028,96974.0,96973.0,0.0017316]
[1732948193630,0.8489417,96974.0,96973.0,0.0017316]
[1732948193877,0.85859361,96974.0,96973.0,0.0017316]
[1732948196573,0.25097102,96973.0,96972.0,0.00136104]
[1732948196786,0.3956646,96973.0,96972.0,0.00136104]
[1732948197971,0.3966646,96973.0,96972.0,0.00136104]
[1732948198182,0.3976646,96973.0,96972.0,0.00136104]
[1732948199113,0.85918955,96973.0,96972.0,0.00136104]
[1732948199366,0.87462894,96973.0,96972.0,0.00136104]
[1732948200596,0.87462554,96973.0,96972.0,0.00136104]
[1732948202203,0.88563548,96973.0,96972.0,0.00136104]
[1732948202451,0.88363548,96973.0,96972.0,0.00136104]
[1732948202846,0.88563548,96973.0,96972.0,0.00136104]
[1732948203074,0.88563462,96973.0,96972.0,0.00136104]
[1732948204063,0.88363462,96973.0,96972.0,0.00136104]
[1732948204294,0.88563462,96973.0,96972.0,0.00136104]
[1732948204766,0.88463462,96973.0,96972.0,0.00136104]
[1732948204976,0.88563462,96973.0,96972.0,0.00136104]
[1732948205173,0.88750042,96973.0,96972.0,0.00136104]
[1732948205420,0.88550042,96973.0,96972.0,0.00136104]
[1732948205974,0.88650042,96973.0,96972.0,0.00136104]
[1732948206814,0.7634294,96973.0,96972.0,0.00136104]
[1732948207021,0.60908128,96973.0,96972.0,0.10448304]
[1732948207239,0.01351466,96973.0,96972.0,0.10448304]
[1732948207436,0.0028658,96973.0,96972.0,0.00136104]
[1732948207702,0.00382874,96973.0,96972.0,0.10448304]
[1732948207843,0.0028658,96973.0,96972.0,0.10448304]
[1732948208059,0.0038658,96973.0,96972.0,0.15348304]
[1732948208468,0.0008658,96973.0,96972.0,0.15348304]
[1732948208639,0.0018658,96973.0,96972.0,0.00136104]
[1732948208875,0.0028658,96973.0,96972.0,0.00136104]
[1732948210177,0.20879495,96973.0,96972.0,0.00136104]
[1732948210691,0.22479495,96973.0,96972.0,0.00336104]
[1732948210904,0.68435696,96973.0,96972.0,0.00336104]
[1732948211115,0.67535696,96973.0,96972.0,0.00236104]
[1732948211308,0.66835696,96973.0,96972.0,0.00136104]
[1732948211521,0.66935696,96973.0,96972.0,0.01036104]
[1732948212152,0.66835696,96973.0,96972.0,0.00136104]
[1732948212350,0.67799738,96973.0,96972.0,0.00136104]
[1732948212764,0.67799738,96973.0,96972.0,0.01036104]
[1732948212765,0.67899738,96973.0,96972.0,0.01036104]
[1732948213421,0.67999738,96973.0,96972.0,0.01936104]
[1732948213856,0.67899738,96973.0,96972.0,0.01036104]
[1732948214080,0.67799738,96973.0,96972.0,0.00136104]
[1732948214497,0.67999738,96973.0,96972.0,0.01936104]
[1732948214734,0.67899738,96973.0,96972.0,0.01036104]
[1732948215155,0.67999738,96973.0,96972.0,0.01936104]
[1732948215615,0.71213208,96973.0,96972.0,0.01936104]
[1732948217278,0.67999738,96973.0,96972.0,0.01936104]
[1732948217695,0.71213406,96973.0,96972.0,0.01936104]
[1732948217923,0.67999738,96973.0,96972.0,0.01936104]
[1732948219498,0.71213446,96973.0,96972.0,0.01936104]
[1732948221954,0.67999738,96973.0,96972.0,0.01936104]
[1732948222629,0.71114027,96973.0,96972.0,0.01036104]
[1732948223183,0.67899738,96973.0,96972.0,0.01036104]
[1732948223452,0.67800041,96973.0,96972.0,0.00136104]
[1732948223667,0.71014338,96973.0,96972.0,0.00136104]
[1732948224085,0.71214338,96973.0,96972.0,0.01936104]
[1732948224344,0.67900041,96973.0,96972.0,0.01036104]
[1732948224555,0.67800041,96973.0,96972.0,0.00136104]
[1732948224758,0.67900041,96973.0,96972.0,0.01036104]
[1732948224988,0.68000041,96973.0,96972.0,0.01936104]
[1732948225422,0.67035696,96973.0,96972.0,0.01936104]
[1732948226481,0.66935696,96973.0,96972.0,0.01036104]
[1732948227186,0.66935696,96973.0,96972.0,0.01936104]
[1732948227579,0.66935696,96973.0,96972.0,0.01036104]
[1732948227580,0.66835696,96973.0,96972.0,0.01036104]
[1732948227893,0.56523596,96973.0,96972.0,0.01936104]
[1732948228105,0.10371101,96973.0,96972.0,0.01936104]
[1732948228253,0.10567395,96973.0,96972.0,0.01936104]
[1732948228689,0.20879495,96973.0,96972.0,0.01936104]
[1732948231816,0.6703199,96973.0,96972.0,0.01936104]
[1732948232038,0.66835696,96973.0,96972.0,0.01936104]
[1732948232486,0.74495696,96973.0,96972.0,0.01936104]
[1732948232693,0.7546012,96973.0,96972.0,0.01936104]
[1732948232931,0.78674032,96973.0,96972.0,0.01936104]
[1732948233591,0.80669034,96973.0,96972.0,0.01936104]
[1732948234098,0.7970461,96973.0,96972.0,0.01936104]
[1732948234533,0.7970461,96973.0,96972.0,0.00136104]
[1732948234754,0.7970461,96973.0,96972.0,0.01436104]
[1732948235185,0.81212864,96973.0,96972.0,0.01436104]
[1732948235609,0.82212864,96973.0,96972.0,0.00536104]
[1732948235865,0.82212864,96973.0,96972.0,0.00136104]
[1732948236044,0.80217862,96973.0,96972.0,0.00136104]
[1732948236255,0.78674321,96973.0,96972.0,0.00136104]
[1732948236989,0.78674321,96973.0,96972.0,0.01036104]
[1732948237215,0.78674321,96973.0,96972.0,0.01636104]
[1732948237847,0.78674321,96973.0,96972.0,0.01036104]
[1732948238013,0.78674321,96973.0,96972.0,0.01836104]
[1732948238236,0.78674321,96973.0,96972.0,0.02736104]
[1732948238503,0.78674321,96973.0,96972.0,0.00136104]
[1732948238892,0.78674321,96973.0,96972.0,0.01836104]
[1732948239577,0.79674321,96973.0,96972.0,0.01836104]
[1732948240228,0.80669323,96973.0,96972.0,0.01836104]
[1732948240642,0.85509323,96973.0,96972.0,0.01836104]
[1732948240859,0.85509323,96973.0,96960.0,0.0017318]
[1732948240860,0.103134,96961.0,96960.0,0.0017318]
[1732948241039,0.21758928,96961.0,96960.0,0.0017318]
[1732948241236,0.21562634,96961.0,96960.0,0.0017318]
[1732948241464,0.29222634,96961.0,96960.0,0.0017318]
[1732948242118,0.29235537,96961.0,96960.0,0.0197318]
[1732948242784,0.34075537,96961.0,96960.0,0.0197318]
[1732948242988,0.85547189,96961.0,96960.0,0.0197318]
[1732948243193,0.85547189,96961.0,96960.0,0.0017318]
[1732948243667,0.85747189,96961.0,96960.0,0.0177318]
[1732948244082,0.85747189,96961.0,96960.0,0.0087318]
[1732948244296,0.85747189,96961.0,96960.0,0.0097318]
[1732948244518,0.85847189,96961.0,96960.0,0.0157318]
[1732948244760,0.85647189,96961.0,96960.0,0.0077318]
[1732948244967,0.85747189,96961.0,96960.0,0.0157318]
[1732948245191,0.85647189,96961.0,96960.0,0.0017318]
[1732948246415,0.85747189,96961.0,96960.0,0.0087318]
[1732948246628,0.85847189,96961.0,96960.0,0.0177318]
[1732948247035,0.85647189,96961.0,96960.0,0.0017318]
[1732948247284,0.85747189,96961.0,96960.0,0.0107318]
[1732948247492,0.85847189,96961.0,96960.0,0.0177318]
[1732948249837,0.86847189,96961.0,96960.0,0.0177318]
[1732948251354,0.90142191,96961.0,96960.0,0.0177318]
[1732948252997,0.103144,96951.0,96950.0,0.0008652]
[1732948253223,0.24010992,96951.0,96950.0,0.0008652]
[1732948253430,0.23814698,96951.0,96950.0,0.0008652]
[1732948254285,0.23914698,96951.0,96950.0,0.0098652]
[1732948254430,0.24014698,96951.0,96950.0,0.0188652]
[1732948254874,0.20798921,96951.0,96950.0,0.0188652]
[1732948255126,0.20995215,96951.0,96950.0,0.0188652]
[1732948255927,0.6520149,96951.0,96950.0,0.0188652]
[1732948256125,0.65969909,96951.0,96950.0,0.0188652]
[1732948256543,0.82199909,96951.0,96950.0,0.0188652]
[1732948257214,0.82099909,96951.0,96950.0,0.0098652]
[1732948257435,0.83208847,96951.0,96950.0,0.0098652]
[1732948258196,0.83108847,96951.0,96950.0,0.0008652]
[1732948258655,0.83208847,96951.0,96950.0,0.0098652]
[1732948259061,0.83208847,96951.0,96950.0,0.0008652]
[1732948259062,0.83108847,96951.0,96950.0,0.0008652]
[1732948259402,0.01,96938.0,96937.0,0.5464879]
[1732948259606,0.6591638,96938.0,96937.0,0.5464879]
[1732948259838,0.66684799,96938.0,96937.0,0.5464879]
[1732948260158,0.66651933,96938.0,96937.0,0.5464879]
[1732948260515,0.66751933,96938.0,96937.0,0.5534879]
[1732948261306,0.66851933,96938.0,96937.0,0.5594879]
[1732948261508,0.66751933,96938.0,96937.0,0.5174879]
[1732948261763,0.66651933,96938.0,96937.0,0.5104879]
[1732948261972,0.66751933,96938.0,96937.0,0.4764879]
[1732948262662,0.66851933,96938.0,96937.0,0.4454879]
[1732948263296,0.66851933,96938.0,96937.0,0.29954953]
[1732948263297,0.82586935,96938.0,96937.0,0.29954953]
[1732948263574,0.82586935,96938.0,96894.0,0.0793]
[1732948263575,0.103207,96892.0,96869.0,0.40963429]
[1732948263765,0.10480815,96892.0,96874.0,0.206452]
[1732948263978,0.44119765,96894.0,96867.0,0.0469]
[1732948263979,0.10480815,96891.0,96880.0,0.103219]
[1732948264204,0.10480815,96891.0,96875.0,0.1049564]
[1732948264205,0.02050991,96876.0,96875.0,0.1049564]
[1732948264407,0.10284521,96876.0,96875.0,0.1049564]
[1732948265038,0.10284521,96876.0,96875.0,0.10555384]
[1732948265838,0.11184521,96876.0,96875.0,0.10655384]
[1732948266946,0.12084521,96876.0,96875.0,0.10655384]
[1732948267153,0.11184521,96876.0,96875.0,0.10555384]
[1732948267574,0.11184521,96876.0,96875.0,0.11324812]
[1732948267979,0.12084521,96876.0,96875.0,0.11324812]
[1732948268542,0.12984521,96876.0,96875.0,0.11324812]
[1732948268804,0.12984521,96876.0,96875.0,0.11324546]
[1732948269010,0.12084521,96876.0,96875.0,0.11324546]
[1732948269215,0.12984521,96876.0,96875.0,0.11324546]
[1732948274844,0.12984521,96876.0,96875.0,0.19444546]
[1732948279356,0.12084521,96876.0,96875.0,0.19444546]
[1732948279765,0.11184521,96876.0,96875.0,0.19444546]
[1732948279982,0.11184521,96876.0,96875.0,0.19391482]
[1732948280218,0.12084521,96876.0,96875.0,0.19391482]
[1732948280383,0.11184521,96876.0,96875.0,0.19391482]
[1732948280792,0.12084521,96876.0,96875.0,0.19391482]
[1732948281545,0.11184521,96876.0,96875.0,0.19391482]
[1732948282029,0.12084521,96876.0,96875.0,0.19391482]
[1732948282374,0.12084521,96876.0,96875.0,0.19391846]
[1732948282982,0.018,96876.0,96875.0,0.39061846]
[1732948283637,0.01796,96876.0,96875.0,0.39061846]
[1732948284055,0.009,96876.0,96875.0,0.40171188]
[1732948284503,0.02290323,96902.0,96901.0,0.103198]
[1732948284722,0.12574844,96902.0,96901.0,0.11089326]
[1732948285466,0.10480815,96902.0,96901.0,0.11089326]
[1732948285672,0.11380815,96902.0,96901.0,0.11089326]
[1732948285889,0.5550058,96902.0,96901.0,0.11090128]
[1732948286106,0.55304286,96902.0,96901.0,0.11090128]
[1732948286989,0.55304286,96902.0,96901.0,0.00770328]
[1732948287481,0.55304286,96902.0,96901.0,0.11090128]
[1732948287702,0.56204286,96902.0,96901.0,0.11090128]
[1732948288153,0.56204286,96902.0,96901.0,0.11176718]
[1732948289128,0.56204286,96902.0,96901.0,0.00856918]
[1732948289374,0.56204286,96902.0,96901.0,0.0008659]
[1732948289596,0.56204286,96902.0,96901.0,0.00858267]
[1732948290013,0.56204286,96902.0,96901.0,0.00810509]
[1732948291220,0.56204286,96902.0,96901.0,0.11130309]
[1732948291390,0.56204286,96902.0,96901.0,0.00810509]
[1732948291917,0.56204286,96902.0,96901.0,0.00380686]
[1732948292121,0.56204286,96902.0,96897.0,0.103202]
[1732948292329,0.10480815,96901.0,96897.0,0.103202]
[1732948292532,0.10480815,96901.0,96888.0,0.103211]
[1732948292761,0.10480815,96901.0,96882.0,0.4082865]
[1732948292762,0.10480815,96901.0,96900.0,0.103199]
[1732948293005,0.10480815,96901.0,96896.0,0.206406]
[1732948293212,0.10480815,96901.0,96900.0,0.103199]
[1732948293753,0.11380815,96901.0,96900.0,0.103199]
[1732948293974,0.10480815,96901.0,96900.0,0.103199]
[1732948294429,0.11380815,96901.0,96900.0,0.103199]
[1732948294872,0.12280815,96901.0,96900.0,0.103199]
[1732948295075,0.5640058,96901.0,96900.0,0.103199]
[1732948295299,0.56204286,96901.0,96900.0,0.103199]
[1732948295518,0.56204286,96901.0,96900.0,0.11349657]
[1732948295727,0.018,96901.0,96900.0,0.11349657]
[1732948295953,0.018,96901.0,96900.0,0.103199]
[1732948296195,0.018,96901.0,96900.0,0.253199]
[1732948297068,0.009,96901.0,96900.0,0.253199]
[1732948297280,0.00196294,96911.0,96910.0,0.103188]
[1732948297484,0.10480815,96911.0,96910.0,0.103188]
[1732948298388,0.10284521,96911.0,96910.0,0.10378544]
[1732948299023,0.10480815,96911.0,96910.0,0.10378544]
[1732948300194,0.11380815,96911.0,96910.0,0.10478544]
[1732948300476,0.12280815,96911.0,96910.0,0.10478544]
[1732948301312,0.24624521,96911.0,96910.0,0.00159744]
[1732948302830,0.24624521,96911.0,96910.0,0.00059744]
[1732948302831,0.23724521,96911.0,96910.0,0.00059744]
[1732948303427,0.22824521,96911.0,96910.0,0.00059744]
[1732948303633,0.34043221,96911.0,96910.0,0.00059744]
[1732948304189,0.78162986,96911.0,96910.0,0.00059744]
[1732948304397,0.68744286,96911.0,96910.0,0.00059744]
[1732948304637,0.66944286,96911.0,96910.0,0.00059744]
[1732948304859,0.67044286,96911.0,96910.0,0.00059744]
[1732948305077,0.77362986,96911.0,96910.0,0.00059744]
[1732948305281,0.77362986,96911.0,96799.0,0.0008661]
[1732948305282,0.28197443,96872.0,96854.0,0.40993465]
[1732948305487,0.23309064,96872.0,96858.0,0.206487]
[1732948305664,0.10284521,96872.0,96871.0,0.00037891]
[1732948306274,0.10284521,96872.0,96871.0,0.10360891]
[1732948307109,0.10384521,96872.0,96871.0,0.10360891]
[1732948307468,0.10284521,96872.0,96871.0,0.10360891]
[1732948307684,0.11184521,96872.0,96871.0,0.10360891]
[1732948308082,0.12084521,96872.0,96871.0,0.10360891]
[1732948308524,0.12084521,96872.0,96871.0,0.00037891]
[1732948308762,0.12084521,96872.0,96863.0,0.001731]
[1732948308968,0.10480815,96871.0,96865.0,0.103236]
[1732948309170,0.10480815,96871.0,96869.0,0.103231]
[1732948309382,0.10480815,96871.0,96866.0,0.103234]
[1732948309598,0.10480815,96871.0,96863.0,0.00191001]
[1732948310043,0.10480815,96871.0,96868.0,0.103232]
[1732948310255,0.11380815,96871.0,96868.0,0.103232]
[1732948310454,0.12280815,96871.0,96864.0,0.206475]
[1732948310651,0.11380815,96871.0,96868.0,0.103232]
[1732948310860,0.10480815,96871.0,96868.0,0.103232]
[1732948311063,0.11380815,96871.0,96867.0,0.103234]
[1732948311263,0.12280815,96871.0,96865.0,0.206472]
[1732948311495,0.12280815,96871.0,96863.0,0.00191001]
[1732948311496,0.11380815,96871.0,96866.0,0.20647]
[1732948311921,0.11380815,96871.0,96868.0,0.103232]
[1732948312133,0.11380815,96871.0,96864.0,0.309712]
[1732948312341,0.11380815,96871.0,96863.0,0.00191001]
[1732948312342,0.10480815,96871.0,96865.0,0.206472]
[1732948312541,0.10480815,96871.0,96868.0,0.103232]
[1732948312751,0.10580815,96871.0,96869.0,0.103231]
[1732948312965,0.10580815,96871.0,96866.0,0.20647]
[1732948313159,0.10480815,96871.0,96863.0,0.00191001]
[1732948313374,0.10480815,96871.0,96864.0,0.206475]
[1732948313581,0.10580815,96871.0,96867.0,0.103233]
[1732948313799,0.10480815,96871.0,96863.0,0.00191001]
[1732948314012,0.10580815,96871.0,96863.0,0.00191001]
[1732948314433,0.103233,96869.0,96863.0,0.00191001]
[1732948314670,0.10480815,96868.0,96863.0,0.00191001]
[1732948314905,0.10480815,96868.0,96863.0,0.10514801]
[1732948315140,0.20804115,96868.0,96863.0,0.00191001]
[1732948315564,0.10480815,96868.0,96863.0,0.00191001]
[1732948315977,0.103237,96864.0,96863.0,0.00191001]
[1732948316220,0.20608221,96864.0,96863.0,0.00191001]
[1732948316421,0.20804515,96864.0,96863.0,0.00191001]
[1732948317269,0.20904515,96864.0,96863.0,0.00191001]
[1732948317490,0.21004515,96864.0,96863.0,0.00191001]
[1732948317730,0.24039058,96864.0,96863.0,0.00191001]
[1732948317928,0.23842764,96864.0,96863.0,0.00191001]
[1732948318335,0.25867338,96864.0,96863.0,0.00191001]
[1732948318876,0.15543638,96864.0,96863.0,0.00191001]
[1732948319056,0.26063632,96864.0,96863.0,0.00191001]
[1732948319233,0.25867338,96864.0,96863.0,0.00191001]
[1732948320023,0.15543638,96864.0,96863.0,0.00191001]
[1732948320237,0.15739932,96864.0,96863.0,0.00191001]
[1732948320416,0.26063632,96864.0,96863.0,0.00191001]
[1732948320614,0.25867338,96864.0,96863.0,0.00191001]
[1732948321778,0.15543638,96864.0,96863.0,0.00191001]
[1732948321981,0.15739932,96864.0,96863.0,0.00191001]
[1732948322413,0.15739932,96864.0,96863.0,0.10514801]
[1732948322667,0.15543638,96864.0,96863.0,0.10514801]
[1732948323225,0.13519064,96864.0,96863.0,0.10514801]
[1732948323867,0.13292911,96864.0,96863.0,0.10514801]
[1732948325057,0.10258368,96864.0,96863.0,0.10514801]
[1732948325873,0.10258368,96864.0,96863.0,0.25514801]
[1732948325874,0.002,96864.0,96863.0,0.25514801]
[1732948326590,0.001,96864.0,96863.0,0.25514801]
[1732948327019,0.008,96864.0,96863.0,0.25514801]
[1732948327472,0.009,96864.0,96863.0,0.25514801]
[1732948327692,0.00196294,96898.0,96865.0,0.206472]
[1732948327902,0.10480815,96897.0,96896.0,0.103203]
[1732948328101,0.10284521,96897.0,96896.0,0.103203]
[1732948328327,0.10284521,96897.0,96895.0,0.103203]
[1732948328540,0.10284521,96897.0,96896.0,0.103203]
[1732948329195,0.10284521,96897.0,96896.0,0.10338201]
[1732948329635,0.11184521,96897.0,96896.0,0.10438201]
[1732948329908,0.12084521,96897.0,96896.0,0.10538201]
[1732948330575,0.12084521,96897.0,96896.0,0.00217901]
[1732948330778,0.30851015,96897.0,96896.0,0.00217901]
[1732948330997,0.30654721,96897.0,96896.0,0.00217901]
[1732948334126,0.33689264,96897.0,96896.0,0.00217901]
[1732948334992,0.35989264,96897.0,96896.0,0.00217901]
[1732948335208,0.41949264,96897.0,96896.0,0.00217901]
[1732948335635,0.43046175,96897.0,96896.0,0.00217901]
[1732948336078,0.42146175,96897.0,96896.0,0.00117901]
[1732948336312,0.41246175,96897.0,96896.0,0.00717901]
[1732948336538,0.44554866,96897.0,96896.0,0.00717901]
[1732948336759,0.44654866,96897.0,96896.0,0.01517901]
[1732948336987,0.44728166,96897.0,96896.0,0.00817901]
[1732948337254,0.44828166,96897.0,96896.0,0.01517901]
[1732948339235,0.44800759,96897.0,96896.0,0.01517901]
[1732948339885,0.43800759,96897.0,96896.0,0.01517901]
[1732948340344,0.44800759,96897.0,96896.0,0.01517901]
[1732948340805,0.45764397,96897.0,96896.0,0.01517901]
[1732948341045,0.44800759,96897.0,96896.0,0.01517901]
[1732948341261,0.45764397,96897.0,96896.0,0.00017901]
[1732948341491,0.44800759,96897.0,96896.0,0.00017901]
[1732948341713,0.45764397,96897.0,96896.0,0.00017901]
[1732948342675,0.44800759,96897.0,96896.0,0.00017901]
[1732948343131,0.45764413,96897.0,96896.0,0.00017901]
[1732948343344,0.44800759,96897.0,96896.0,0.00017901]
[1732948344013,0.45764413,96897.0,96896.0,0.00017901]
[1732948344220,0.44800759,96897.0,96896.0,0.00017901]
[1732948344418,0.43800759,96897.0,96896.0,0.00017901]
[1732948344639,0.45764413,96897.0,96896.0,0.00017901]
[1732948344886,0.43800759,96897.0,96896.0,0.00017901]
[1732948345183,0.40403848,96897.0,96896.0,0.00017901]
[1732948345528,0.37195157,96897.0,96896.0,0.00017901]
[1732948345951,0.4040795,96897.0,96896.0,0.00017901]
[1732948346202,0.37195157,96897.0,96896.0,0.00017901]
[1732948346922,0.10630414,96897.0,96896.0,0.00017901]
[1732948347139,0.10826708,96897.0,96896.0,0.10338201]
[1732948347352,0.10630414,96897.0,96896.0,0.10338201]
[1732948347773,0.10630414,96897.0,96896.0,0.00017901]
[1732948347976,0.10530414,96897.0,96894.0,0.103204]
[1732948348206,0.00196294,96896.0,96890.0,0.20659686]
[1732948348439,0.10284521,96895.0,96892.0,0.103207]
[1732948348657,0.00196294,96894.0,96892.0,0.103207]
[1732948348881,0.10284521,96893.0,96891.0,0.103208]
[1732948349091,0.00196294,96892.0,96890.0,0.00017886]
[1732948349275,0.10284521,96891.0,96890.0,0.00017886]
[1732948349535,0.10284521,96891.0,96890.0,0.10338786]
[1732948349747,0.10284521,96891.0,96890.0,0.00017886]
[1732948349958,0.10284521,96891.0,96890.0,0.00117886]
[1732948350220,0.10284521,96891.0,96890.0,0.10338786]
[1732948350431,0.20572498,96891.0,96890.0,0.00017886]
[1732948351118,0.20768792,96891.0,96890.0,0.00017886]
[1732948351777,0.21068792,96891.0,96890.0,0.00017886]
[1732948352010,0.21168792,96891.0,96890.0,0.00117886]
[1732948352218,0.20868792,96891.0,96890.0,0.00117886]
[1732948352407,0.20768792,96891.0,96890.0,0.00017886]
[1732948352619,0.20868792,96891.0,96890.0,0.00617886]
[1732948352767,0.20968792,96891.0,96890.0,0.00717886]
[1732948353366,0.21068792,96891.0,96890.0,0.00817886]
[1732948354246,0.20968792,96891.0,96890.0,0.00217886]
[1732948354678,0.21068792,96891.0,96890.0,0.00217886]
[1732948357354,0.28978792,96891.0,96890.0,0.00217886]
[1732948357566,0.28782498,96891.0,96890.0,0.00217886]
[1732948357807,0.28682498,96891.0,96890.0,0.00217886]
[1732948358019,0.36835715,96891.0,96890.0,0.00217886]
[1732948358228,0.39970258,96891.0,96890.0,0.00217886]
[1732948358431,0.39770258,96891.0,96890.0,0.00017886]
[1732948358654,0.39670258,96891.0,96890.0,0.00017886]
[1732948358865,0.39770258,96891.0,96890.0,0.00117886]